bitfinex/quotes_ETHUSD_20240718
["timestamp","ask_amount","ask_price","bid_price","bid_amount"]
[1721264829233,2.92612,3417.5,3416.8,2.9267]
[1721264829433,19.66,3417.6,3416.8,2.9267]
[1721264830364,22.58603,3417.6,3416.8,2.9267]
[1721264830669,10.18603,3417.6,3416.8,2.9267]
[1721264831365,7.26,3417.6,3416.9,2.92661]
[1721264832246,10.18608,3417.6,3416.9,2.92661]
[1721264833100,2.4973,3417.5,3416.2,2.92716]
[1721264833395,2.4973,3417.5,3416.0,2.92739]
[1721264833396,2.92671,3416.8,3416.0,2.92739]
[1721264833602,2.92671,3416.8,3415.2,2.2582]
[1721264833603,2.516,3416.7,3415.5,2.92781]
[1721264833900,9.7573,3417.0,3415.5,2.92776]
[1721264833901,5.44315,3416.3,3415.5,2.92776]
[1721264835161,2.92715,3416.3,3415.6,2.92771]
[1721264836591,2.92715,3416.3,3415.3,2.92797]
[1721264836906,3.52731945,3416.5,3415.4,2.9279]
[1721264837203,2.92714,3416.3,3415.5,2.92779]
[1721264837907,2.92714,3416.3,3415.6,2.92774]
[1721264838265,2.92714,3416.3,3415.4,2.92785]
[1721264838465,2.92724,3416.2,3415.2,2.92808]
[1721264838969,2.92724,3416.2,3415.4,2.92791]
[1721264839866,2.92724,3416.2,3415.5,2.92782]
[1721264840464,2.92705,3416.4,3415.6,2.92772]
[1721264840964,2.92715,3416.3,3415.6,2.92772]
[1721264841403,2.92723,3416.2,3415.3,2.92799]
[1721264841613,2.92723,3416.2,3415.4,2.92788]
[1721264842299,2.3034,3416.5,3415.1,2.92817]
[1721264842608,2.92759,3415.8,3415.1,2.92817]
[1721264843117,2.92745,3416.0,3415.1,2.92817]
[1721264843783,2.92745,3416.0,3415.2,2.92806]
[1721264845071,2.92733,3416.1,3415.3,2.92798]
[1721264845294,2.92717,3416.3,3415.3,0.585615]
[1721264845505,2.92717,3416.3,3415.5,2.92776]
[1721264845933,2.92725,3416.2,3415.5,2.92776]
[1721264847906,8.23039,3416.5,3415.1,2.92816]
[1721264847907,1.22391945,3416.4,3415.1,2.92816]
[1721264848140,2.92749,3415.9,3415.1,2.92816]
[1721264849003,2.92762,3415.8,3414.9,2.92833]
[1721264849535,2.92762,3415.8,3415.0,2.92825]
[1721264849836,5.19297,3415.7,3414.8,2.92836]
[1721264850533,2.92784,3415.5,3414.7,2.9285]
[1721264850736,2.92792,3415.4,3414.7,2.9285]
[1721264851321,2.92784,3415.5,3414.3,5.33834]
[1721264851533,2.92809,3415.2,3414.2,2.92894]
[1721264851735,2.92809,3415.2,3414.5,2.92868]
[1721264852858,2.92809,3415.2,3414.3,2.92879]
[1721264853001,2.3873,3415.1,3414.3,2.92879]
[1721264853212,2.3873,3415.1,3414.1,2.929]
[1721264853652,2.3873,3415.1,3414.0,10.0]
[1721264853949,0.55,3415.0,3414.0,10.0]
[1721264855349,2.9286,3414.6,3414.0,10.0]
[1721264856341,2.9286,3414.6,3414.0,11.585851]
[1721264856536,2.92845,3414.8,3414.0,11.585851]
[1721264857279,2.92845,3414.8,3414.0,10.0]
[1721264857566,2.92845,3414.8,3414.0,12.92911]
[1721264857859,2.92855,3414.7,3414.0,12.92911]
[1721264858269,2.9286,3414.6,3414.0,12.92911]
[1721264859148,2.9286,3414.6,3414.0,10.0]
[1721264860469,2.9288,3414.4,3414.0,10.0]
[1721264860649,5.3598,3414.4,3414.0,10.0]
[1721264861173,2.431,3414.4,3414.0,10.0]
[1721264861546,2.92895,3414.2,3414.0,10.0]
[1721264866397,2.92879,3414.4,3414.0,10.0]
[1721264866597,3.0,3414.5,3414.0,10.0]
[1721264866598,2.92885,3414.3,3414.0,10.0]
[1721264868998,2.92895,3414.2,3414.0,10.0]
[1721264869904,2.92902,3414.1,3414.0,10.0]
[1721264870571,5.85804,3414.1,3414.0,10.0]
[1721264874820,7.26,3414.3,3414.0,13.40264489]
[1721264875041,7.26,3414.3,3414.2,2.92894]
[1721264875321,7.26,3414.8,3414.4,2.92875]
[1721264875879,7.26,3414.8,3414.5,2.92863]
[1721264877015,7.26,3414.8,3414.6,2.92858]
[1721264878410,10.188,3415.3,3414.6,2.92858]
[1721264880620,10.188,3415.3,3415.0,5.37345]
[1721264880621,7.26,3415.3,3415.0,5.37345]
[1721264881319,7.26,3415.3,3415.0,2.4452]
[1721264881525,12.4,3415.7,3415.5,2.92781]
[1721264881817,10.18728,3416.2,3415.5,2.92781]
[1721264883519,3.0,3416.1,3415.6,2.92773]
[1721264883688,7.26,3416.2,3415.6,2.92773]
[1721264885528,7.26,3416.2,3415.7,2.92763]
[1721264885935,7.26,3416.2,3415.8,2.92756]
[1721264887252,12.4,3416.5,3415.8,2.92756]
[1721264887412,10.1869,3416.6,3415.8,2.92756]
[1721264887733,2.92698,3416.5,3415.8,2.92756]
[1721264888799,2.92706,3416.4,3415.6,2.92773]
[1721264888992,2.92714,3416.3,3415.3,0.537313]
[1721264889192,2.92731,3416.1,3415.2,2.92807]
[1721264889434,2.92731,3416.1,3415.3,2.92798]
[1721264889858,2.92731,3416.1,3415.4,2.92789]
[1721264891354,2.92714,3416.3,3415.4,2.92789]
[1721264891536,2.9274,3416.0,3415.3,2.92799]
[1721264892334,2.9274,3416.0,3415.4,2.9279]
[1721264892552,2.92714,3416.3,3415.6,2.92774]
[1721264894141,2.92726,3416.2,3415.6,2.92774]
[1721264896261,2.92726,3416.2,3415.4,5.85574]
[1721264896664,2.92726,3416.2,3415.5,2.92782]
[1721264896962,2.92726,3416.2,3415.2,2.92803]
[1721264897169,2.92747,3416.0,3415.0,5.37342]
[1721264897657,7.26,3416.1,3415.0,5.37342]
[1721264897658,2.92766,3415.7,3415.0,5.37342]
[1721264898039,2.92766,3415.7,3415.1,2.92815]
[1721264898258,2.92766,3415.7,3415.0,5.37342]
[1721264899166,2.92749,3415.9,3415.1,2.92817]
[1721264899354,2.92757,3415.8,3415.1,2.92817]
[1721264902027,2.92767,3415.7,3415.0,2.4452]
[1721264902226,2.92775,3415.6,3415.0,2.4452]
[1721264903168,2.92757,3415.8,3415.0,5.37345]
[1721264903663,3.0,3416.0,3415.2,2.92806]
[1721264903972,7.26,3416.1,3415.7,5.32425]
[1721264904175,2.92711,3416.4,3415.7,5.32425]
[1721264904374,3.0,3416.3,3415.7,5.32425]
[1721264904737,3.0,3416.3,3415.7,2.3966]
[1721264905274,3.0,3416.3,3415.7,5.32425]
[1721264905785,5.92714,3416.3,3415.7,5.32425]
[1721264906148,10.18704,3416.5,3415.8,2.92756]
[1721264909934,10.18697,3416.5,3415.8,2.92756]
[1721264911180,2.92706,3416.4,3415.8,2.92756]
[1721264912651,2.92706,3416.4,3415.7,2.3966]
[1721264913181,2.92724,3416.2,3415.4,2.92787]
[1721264913357,2.92724,3416.2,3415.5,2.92779]
[1721264913562,2.92724,3416.2,3415.5,2.92782]
[1721264915361,2.92731,3416.1,3415.5,2.92782]
[1721264915977,2.92731,3416.1,3415.3,5.18968]
[1721264916190,2.9274,3416.0,3415.3,5.18968]
[1721264916565,2.9274,3416.0,3415.3,2.2617]
[1721264916984,2.9274,3416.0,3415.3,5.18969]
[1721264918258,2.9274,3416.0,3415.3,6.001475]
[1721264920275,2.9274,3416.0,3415.3,5.18969]
[1721264922694,2.9274,3416.0,3415.4,2.9279]
[1721264923698,1.22391945,3416.1,3415.5,2.92774]
[1721264923880,1.22391945,3416.2,3415.8,2.92756]
[1721264924277,1.22391945,3416.2,3415.9,2.4166]
[1721264924611,1.22391945,3416.1,3415.9,2.4166]
[1721264925000,1.22391945,3416.2,3415.9,2.4166]
[1721264925507,1.22391945,3416.1,3415.9,2.4166]
[1721264925713,1.22391945,3416.1,3416.0,2.9274]
[1721264925872,8.48391945,3416.5,3416.1,2.92731]
[1721264926079,7.26,3416.5,3416.2,2.92721]
[1721264926488,7.26,3416.5,3416.4,8.2023]
[1721264926691,7.26,3416.5,3416.4,9.02253]
[1721264930896,7.26,3416.5,3416.4,11.94958]
[1721264931130,7.26,3416.5,3416.4,14.94958]
[1721264931807,7.26,3417.6,3417.5,5.85222]
[1721264932005,12.4,3418.1,3417.7,2.92588]
[1721264934198,7.26,3418.5,3417.9,2.92575]
[1721264934426,17.81512,3418.9,3418.0,2.92562]
[1721264934427,7.26,3418.8,3418.0,2.92562]
[1721264934629,7.26,3418.8,3418.1,2.2899]
[1721264935708,7.26,3418.8,3418.4,2.92527]
[1721264936038,7.26,3418.8,3418.1,2.2899]
[1721264936039,7.26,3419.2,3418.5,2.92524]
[1721264937129,10.18466,3419.2,3418.5,2.92524]
[1721264938645,7.26,3419.2,3418.5,2.92524]
[1721264939436,7.26,3419.2,3418.8,5.29467]
[1721264939644,7.26,3419.2,3418.9,2.9249]
[1721264940561,7.26,3419.2,3418.8,2.3697]
[1721264940865,2.9245,3419.4,3418.5,2.92525]
[1721264941432,2.92458,3419.3,3418.4,5.29503]
[1721264941758,2.92458,3419.3,3418.5,2.92525]
[1721264941972,2.92458,3419.3,3418.4,2.3697]
[1721264942195,2.92458,3419.3,3418.4,5.824561]
[1721264942962,2.92466,3419.2,3418.4,5.824561]
[1721264943559,2.92454,3419.4,3418.5,2.92525]
[1721264943770,2.92463,3419.3,3418.5,2.92525]
[1721264943940,2.92441,3419.5,3418.6,3.5075371]
[1721264944269,2.9245,3419.4,3418.7,2.92506]
[1721264944568,2.9245,3419.4,3418.5,2.92525]
[1721264944569,2.9247,3419.2,3418.5,2.92525]
[1721264945259,2.9247,3419.2,3418.5,3.747291]
[1721264945760,2.9245,3419.4,3418.0,5.40276]
[1721264945761,2.92474,3419.1,3418.0,5.40276]
[1721264945925,2.92501,3418.8,3418.0,5.40276]
[1721264946763,2.92517,3418.6,3418.0,2.4771]
[1721264946940,2.92526,3418.5,3417.6,5.18792]
[1721264947137,2.92526,3418.5,3417.8,0.585186]
[1721264949725,2.92526,3418.5,3417.6,5.18791]
[1721264949926,2.92526,3418.5,3417.7,2.92594]
[1721264950223,12.46147,3419.0,3418.2,2.92544]
[1721264950224,10.18488,3419.0,3418.2,2.92544]
[1721264950743,7.26,3419.0,3418.3,2.92538]
[1721264950931,7.26,3419.0,3418.6,2.92516]
[1721264951129,7.26,3419.0,3418.7,2.4394]
[1721264951830,7.26,3419.0,3418.7,5.36448]
[1721264952528,7.26,3419.0,3418.7,2.4394]
[1721264952928,7.26,3419.0,3418.5,2.92525]
[1721264953136,7.26,3419.0,3418.5,3.742385]
[1721264953368,7.26,3419.0,3418.6,2.92515]
[1721264955364,7.26,3419.0,3418.5,3.742385]
[1721264955563,2.92458,3419.3,3418.5,3.742385]
[1721264955766,2.92458,3419.3,3418.6,2.92515]
[1721264955928,2.92458,3419.3,3418.7,3.5918335]
[1721264956134,22.5845,3419.4,3418.7,3.5918335]
[1721264958363,2.92458,3419.3,3418.5,6.667575]
[1721264958566,2.92458,3419.3,3418.6,2.92517]
[1721264960148,2.92458,3419.3,3418.5,0.817135]
[1721264960573,2.92496,3418.9,3418.3,2.3207]
[1721264960772,19.66,3419.4,3418.3,2.3207]
[1721264960773,2.92481,3419.1,3418.3,2.3207]
[1721264960953,2.92471,3419.2,3418.4,2.92531]
[1721264961137,2.92471,3419.2,3418.4,3.749929]
[1721264963770,2.92474,3419.1,3418.4,3.749929]
[1721264965642,2.92457,3419.3,3418.6,2.92514]
[1721264965842,2.92457,3419.3,3418.7,0.6675069]
[1721264966777,7.26,3419.4,3418.7,3.5925769]
[1721264966989,10.18454,3419.4,3418.7,3.5925769]
[1721264967481,2.92458,3419.3,3418.7,0.6675069]
[1721264967782,2.92458,3419.3,3418.5,2.92519]
[1721264967947,2.92466,3419.2,3418.5,2.92519]
[1721264968843,2.92458,3419.3,3418.3,2.3207]
[1721264968844,2.92483,3419.0,3418.3,2.3207]
[1721264969062,2.925,3418.8,3418.3,2.3207]
[1721264969470,2.92509,3418.7,3418.3,2.3207]
[1721264969942,2.92509,3418.7,3418.0,2.2993]
[1721264970147,2.92497,3418.9,3418.2,2.9255]
[1721264972087,2.92466,3419.2,3418.5,2.92525]
[1721264972246,2.92483,3419.0,3418.3,2.92537]
[1721264972451,2.92474,3419.2,3418.4,2.92533]
[1721264972704,2.9246,3419.3,3418.4,2.92533]
[1721264972705,2.92474,3419.1,3418.4,2.92533]
[1721264973884,2.92483,3419.0,3418.2,5.22478]
[1721264974458,2.92483,3419.0,3418.2,2.2993]
[1721264974798,2.92483,3419.0,3417.6,3.0]
[1721264974799,2.92516,3418.7,3417.9,5.37488]
[1721264975292,2.92516,3418.7,3418.0,3.755734]
[1721264978285,2.92519,3418.6,3417.9,5.37488]
[1721264978499,2.92534,3418.5,3417.7,2.92593]
[1721264978668,2.92561,3418.1,3417.3,2.92625]
[1721264979105,2.92561,3418.1,3417.4,2.92619]
[1721264979272,2.92561,3418.1,3417.4,3.759784]
[1721264979592,2.9257,3418.0,3417.3,2.92628]
[1721264982769,2.92558,3418.2,3417.4,2.92618]
[1721264983073,7.26,3418.4,3417.7,2.3048]
[1721264983385,7.26,3418.4,3417.7,2.827876]
[1721264983586,7.26,3418.4,3417.8,2.92579]
[1721264983792,7.26,3418.4,3417.9,2.92576]
[1721264985675,7.26,3418.4,3418.0,2.92568]
[1721264987487,7.26,3418.4,3418.1,2.9256]
[1721264987706,7.26,3418.9,3418.2,0.585136]
[1721264987906,7.26,3418.9,3418.1,2.9256]
[1721264988306,10.18491,3418.9,3418.1,2.9256]
[1721264988627,10.18491,3418.9,3418.3,2.92542]
[1721264988926,7.26,3418.9,3418.4,2.92534]
[1721264989079,7.26,3418.9,3418.6,2.92516]
[1721264989928,7.26,3418.9,3418.7,2.92507]
[1721264990876,7.26,3418.9,3418.6,2.92516]
[1721264991078,7.26,3418.9,3418.2,5.18118]
[1721264991397,7.26,3418.9,3418.4,2.92533]
[1721264992478,7.26,3418.9,3418.3,2.92542]
[1721264993012,7.26,3418.9,3418.2,0.81068]
[1721264993182,7.26,3418.9,3417.9,5.22645]
[1721264993183,10.18492,3418.9,3418.0,5.92562]
[1721264993388,10.18492,3418.9,3418.1,4.340804]
[1721264993889,10.18492,3418.9,3418.2,2.9255]
[1721264994213,10.18492,3418.9,3418.3,2.92541]
[1721264994214,7.26,3418.9,3418.3,2.92541]
[1721264994431,7.26,3418.9,3418.4,2.92533]
[1721264994574,7.26,3418.9,3418.3,2.92541]
[1721264994575,7.26,3418.9,3418.5,3.510264]
[1721264994788,7.26,3418.9,3418.5,2.92519]
[1721264995402,7.26,3418.9,3418.5,5.32179]
[1721264995608,7.26,3418.9,3418.7,2.92503]
[1721264996419,7.26,3418.9,3418.8,2.925]
[1721264996594,4.14841945,3419.4,3418.8,3.749679]
[1721264996794,4.14841945,3419.4,3418.8,2.925]
[1721264997926,4.14841945,3419.4,3418.6,2.92511]
[1721264998140,1.22391945,3419.3,3418.6,2.92511]
[1721264998338,1.22391945,3419.2,3418.6,2.92511]
[1721264998505,1.22391945,3419.3,3418.7,2.92508]
[1721264999224,4.14841945,3419.4,3418.7,2.92508]
[1721264999992,1.22391945,3419.3,3418.7,2.92508]
[1721265000489,4.14841945,3419.4,3418.8,2.92498]
[1721265000929,2.9245,3419.4,3418.8,2.92498]
[1721265001726,8.48391945,3419.5,3419.0,2.92481]
[1721265001892,8.48391945,3419.5,3418.8,2.92498]
[1721265002089,8.48391945,3419.5,3418.9,0.3749667]
[1721265002540,7.26,3419.5,3418.9,0.3749667]
[1721265003341,7.26,3419.5,3418.6,2.9251]
[1721265003547,2.9245,3419.4,3418.7,2.92507]
[1721265004717,2.92467,3419.2,3418.2,8.37028]
[1721265004921,1.22391945,3419.1,3418.0,2.92565]
[1721265005148,1.22391945,3419.1,3418.1,2.92559]
[1721265005149,2.92508,3418.8,3418.1,2.92559]
[1721265005444,4.14880945,3419.0,3418.2,2.92545]
[1721265005647,2.92489,3419.0,3418.3,2.92539]
[1721265005856,1.22391945,3419.2,3418.6,2.92516]
[1721265006012,6.44070945,3419.3,3418.6,2.92516]
[1721265006206,4.14850945,3419.3,3418.6,2.92516]
[1721265006411,8.79306972,3419.5,3418.6,2.92516]
[1721265006412,2.92449,3419.4,3418.7,0.812966]
[1721265006610,2.92449,3419.4,3418.7,3.738046]
[1721265006821,8.48391945,3419.5,3419.0,2.92482]
[1721265008457,8.48391945,3419.5,3419.3,2.92457]
[1721265008614,7.26,3419.5,3419.3,2.92457]
[1721265008815,7.26,3419.5,3419.4,2.92448]
[1721265009014,7.26,3420.1,3419.4,2.92448]
[1721265009342,2.92397,3420.0,3419.4,2.92448]
[1721265012809,7.26,3420.1,3419.4,2.92448]
[1721265013047,10.18389,3420.1,3419.4,2.92448]
[1721265014752,10.18389,3420.1,3419.4,3.509393]
[1721265014956,7.26,3420.1,3419.5,2.92439]
[1721265015671,10.18389,3420.1,3419.5,2.92439]
[1721265015859,10.18389,3420.1,3419.4,0.584913]
[1721265016019,10.18389,3420.1,3419.3,2.92451]
[1721265016355,2.92429,3419.7,3419.0,2.2763]
[1721265017022,2.92432,3419.6,3419.0,2.2763]
[1721265017223,2.92432,3419.6,3418.9,2.92486]
[1721265018545,2.92441,3419.5,3418.7,3.738026]
[1721265018871,2.92483,3419.0,3418.3,2.3462]
[1721265019018,2.92483,3419.0,3418.0,5.27188]
[1721265019221,2.92501,3418.8,3418.0,5.27188]
[1721265019615,5.39613,3419.0,3417.8,2.92585]
[1721265019616,2.92509,3418.7,3417.8,2.92585]
[1721265019820,2.92509,3418.7,3417.9,2.92575]
[1721265020068,2.92509,3418.7,3418.0,2.92568]
[1721265020616,1.22457391,3419.2,3418.4,2.92529]
[1721265020853,2.92473,3419.2,3418.5,0.585078]
[1721265021115,2.92475,3419.1,3418.4,2.92529]
[1721265021258,2.92475,3419.1,3418.3,2.3487]
[1721265021259,2.92491,3419.0,3418.2,2.92549]
[1721265021432,2.92492,3418.9,3418.2,2.92549]
[1721265022166,2.92492,3418.9,3418.1,2.92559]
[1721265022467,2.92492,3418.9,3418.1,3.7974725]
[1721265023848,2.925,3418.8,3418.1,2.92559]
[1721265024265,2.92475,3419.1,3418.2,2.92549]
[1721265025179,2.92498,3418.9,3418.2,2.92549]
[1721265026039,2.925,3418.8,3418.0,2.92564]
[1721265026349,2.925,3418.8,3418.1,2.92559]
[1721265031773,2.925,3418.8,3418.2,2.92551]
[1721265032592,2.92483,3419.0,3418.3,2.92541]
[1721265032893,2.92483,3419.0,3418.4,2.3865]
[1721265033435,1.22457391,3419.2,3418.6,2.92511]
[1721265033672,11.40921391,3419.3,3418.6,2.92511]
[1721265034337,2.92467,3419.2,3418.6,2.92511]
[1721265037954,7.26,3419.3,3418.6,2.92511]
[1721265038158,7.26,3419.3,3418.6,3.748804]
[1721265038159,10.1846,3419.3,3418.6,3.748804]
[1721265038455,7.26,3419.3,3418.7,2.92507]
[1721265039084,7.26,3419.3,3418.9,2.92483]
[1721265041548,7.26,3419.3,3418.6,0.823694]
[1721265041891,2.9252,3418.6,3417.8,0.518765]
[1721265042049,2.92535,3418.4,3417.7,2.4845]
[1721265042248,2.92535,3418.4,3417.6,2.92596]
[1721265043998,2.92535,3418.4,3417.4,2.92619]
[1721265044170,2.92535,3418.4,3417.6,2.92602]
[1721265044372,2.92544,3418.3,3417.7,0.885221]
[1721265045522,2.92552,3418.2,3417.4,2.92619]
[1721265045684,2.92561,3418.1,3417.3,5.41078]
[1721265045883,2.92561,3418.1,3417.4,0.841078]
[1721265049114,2.92578,3417.9,3417.0,2.92653]
[1721265049288,2.92604,3417.6,3416.7,2.92678]
[1721265049500,2.4537,3418.0,3416.7,2.92678]
[1721265049801,2.92612,3417.5,3416.7,2.92678]
[1721265050121,2.92612,3417.5,3416.8,0.585375]
[1721265050412,2.9262,3417.4,3416.8,0.585375]
[1721265051426,2.9262,3417.4,3416.5,2.92697]
[1721265051578,2.9263,3417.3,3416.5,2.92697]
[1721265052981,2.9263,3417.3,3416.6,2.92687]
[1721265053316,2.92615,3417.5,3416.6,2.92687]
[1721265053515,2.92623,3417.4,3416.7,0.834242]
[1721265054816,2.92612,3417.5,3416.8,2.4658]
[1721265055124,2.92612,3417.5,3416.8,5.39245]
[1721265057302,2.9263,3417.3,3416.5,5.38716]
[1721265057506,2.9263,3417.3,3416.5,5.925876]
[1721265058012,2.9263,3417.3,3416.6,2.92687]
[1721265060524,2.9263,3417.3,3416.5,5.925876]
[1721265064765,2.92637,3417.2,3416.5,5.925876]
[1721265065445,2.492,3417.4,3416.5,5.925876]
[1721265065446,5.41826,3417.4,3416.6,2.92687]
[1721265065649,2.92628,3417.3,3416.6,3.5194576]
[1721265066979,2.92646,3417.1,3416.2,5.28407]
[1721265067128,2.92672,3416.8,3416.2,2.3569]
[1721265067337,2.4735,3417.2,3415.8,2.4413]
[1721265067636,2.52,3417.1,3415.8,2.4413]
[1721265068167,2.92697,3416.5,3415.8,2.4413]
[1721265068385,2.92714,3416.3,3415.3,2.92796]
[1721265068530,2.92729,3416.2,3415.3,2.92796]
[1721265068877,2.92729,3416.2,3415.3,3.513571]
[1721265069032,2.92734,3416.1,3415.3,3.513571]
[1721265069385,2.92734,3416.1,3415.3,2.92796]
[1721265069533,2.92743,3416.0,3415.3,2.92796]
[1721265070371,2.92743,3416.0,3415.4,2.4027]
[1721265071951,2.92743,3416.0,3415.3,2.92796]
[1721265072471,2.92743,3416.0,3415.1,2.9281]
[1721265072645,5.31023,3416.0,3415.1,2.9281]
[1721265073061,5.31023,3416.0,3415.2,2.92808]
[1721265073249,5.31023,3416.0,3415.1,2.9281]
[1721265073452,5.31023,3416.0,3415.3,2.92799]
[1721265075756,2.92724,3416.2,3415.4,2.92785]
[1721265075953,2.92724,3416.2,3415.3,2.92799]
[1721265075954,2.92724,3416.2,3415.6,2.92774]
[1721265076157,2.92724,3416.2,3415.4,2.92786]
[1721265076855,10.18718,3416.3,3415.6,2.4212]
[1721265077089,10.18718,3416.3,3415.6,5.34888]
[1721265078590,10.18718,3416.3,3415.6,2.4212]
[1721265079028,10.18718,3416.3,3415.3,2.92798]
[1721265079029,2.92729,3416.2,3415.3,2.92798]
[1721265079928,2.92741,3416.0,3415.3,2.92798]
[1721265080223,2.92741,3416.0,3415.3,3.71995674]
[1721265081014,2.92741,3416.0,3415.3,2.92798]
[1721265083985,2.92741,3416.0,3415.1,5.85625]
[1721265084294,2.92741,3416.0,3415.2,5.92807]
[1721265084614,2.92741,3416.0,3415.3,2.92799]
[1721265087800,2.92754,3415.9,3415.1,2.9281]
[1721265088233,2.92736,3416.1,3415.3,2.928]
[1721265088384,2.9274,3416.0,3415.3,2.928]
[1721265088589,2.92748,3415.9,3415.3,2.928]
[1721265089689,2.92748,3415.9,3415.2,0.53495]
[1721265090029,2.92748,3415.9,3415.1,2.9281]
[1721265090786,5.26118,3415.9,3415.1,2.9281]
[1721265091628,2.92759,3415.8,3415.1,2.9281]
[1721265091810,2.92759,3415.8,3415.0,2.4214]
[1721265093088,2.92759,3415.8,3415.1,2.92812]
[1721265094600,2.3337,3415.9,3415.1,2.92812]
[1721265094834,7.26,3416.3,3415.5,2.92778]
[1721265095102,7.26,3416.3,3415.9,2.92748]
[1721265095425,10.18692,3416.6,3415.9,2.92748]
[1721265096521,10.18692,3416.6,3416.0,2.92739]
[1721265097141,10.18692,3416.6,3415.8,2.92751]
[1721265097346,10.18692,3416.6,3415.9,2.92748]
[1721265098072,10.18692,3416.6,3415.6,2.4019]
[1721265098073,2.9271,3416.4,3415.6,2.4019]
[1721265098222,2.92723,3416.2,3415.6,2.4019]
[1721265098418,2.92723,3416.2,3415.5,2.9278]
[1721265098663,5.40743,3416.2,3415.3,2.92793]
[1721265098869,5.40743,3416.2,3415.4,2.92786]
[1721265099220,2.9271,3416.4,3415.5,2.9278]
[1721265099524,2.9271,3416.4,3415.6,3.22047]
[1721265101626,2.92715,3416.3,3415.6,3.22047]
[1721265101827,10.18692,3416.6,3415.7,2.92764]
[1721265102026,2.92715,3416.3,3415.5,2.92779]
[1721265102249,2.92715,3416.3,3415.6,2.92768]
[1721265102468,2.92715,3416.3,3415.7,2.92765]
[1721265102769,7.26,3416.6,3415.8,5.18635]
[1721265102926,2.92697,3416.5,3415.8,5.18635]
[1721265103233,2.92706,3416.4,3415.8,5.18635]
[1721265106475,10.18694,3416.6,3415.8,5.18635]
[1721265106684,2.92697,3416.5,3415.8,5.18635]
[1721265106963,2.92707,3416.4,3415.8,5.18635]
[1721265107856,2.92697,3416.5,3415.8,5.18635]
[1721265108064,2.92697,3416.5,3415.9,2.92747]
[1721265109160,7.26,3416.6,3415.9,2.92747]
[1721265109484,10.18688,3416.6,3415.9,2.92747]
[1721265111285,2.92697,3416.5,3415.9,2.92747]
[1721265111988,5.18507,3416.5,3415.7,2.9276]
[1721265112200,6.40964391,3416.5,3415.7,2.9276]
[1721265112351,2.9272,3416.3,3415.2,2.4456]
[1721265112694,2.92742,3416.0,3415.3,2.92797]
[1721265113257,4.15199391,3416.0,3415.3,2.92797]
[1721265113597,4.15199391,3416.0,3414.4,1.28726755]
[1721265113598,2.92767,3415.7,3414.9,2.92829]
[1721265113767,2.92767,3415.7,3415.0,2.92825]
[1721265114502,2.92767,3415.7,3414.9,2.92833]
[1721265115118,2.92767,3415.7,3414.8,2.92836]
[1721265115262,2.92767,3415.7,3415.1,2.92816]
[1721265115465,3.70687391,3415.8,3415.1,2.92816]
[1721265115665,5.40987,3415.8,3415.1,2.92816]
[1721265115871,2.92757,3415.8,3415.1,2.92816]
[1721265117570,2.92757,3415.8,3415.2,2.92807]
[1721265118654,1.22457391,3415.9,3415.2,2.92807]
[1721265118878,1.22457391,3416.0,3415.2,3.513702]
[1721265119220,1.22457391,3416.0,3415.5,2.92782]
[1721265120470,1.22457391,3416.0,3415.3,5.39744]
[1721265120673,2.3817,3415.9,3415.3,2.92794]
[1721265121123,4.15198391,3416.0,3415.4,2.92791]
[1721265121333,2.92741,3416.0,3415.4,2.92791]
[1721265121610,4.15198391,3416.0,3415.4,2.92791]
[1721265121991,2.92741,3416.0,3415.4,2.92791]
[1721265122428,2.9275,3415.9,3415.2,2.92808]
[1721265122876,2.9275,3415.9,3415.3,2.92799]
[1721265123881,4.15197391,3416.0,3415.4,2.9279]
[1721265124098,2.92749,3415.9,3415.2,2.92803]
[1721265124418,2.92757,3415.8,3415.0,2.92817]
[1721265124797,2.92757,3415.8,3415.1,2.92817]
[1721265125783,2.92765,3415.7,3414.9,2.92828]
[1721265125983,2.92765,3415.7,3414.7,2.92847]
[1721265125984,2.92783,3415.5,3414.7,2.92847]
[1721265128590,2.928,3415.3,3414.6,2.92858]
[1721265129382,2.92792,3415.4,3414.7,2.92849]
[1721265129623,3.54887391,3415.6,3414.7,2.92849]
[1721265129823,2.928,3415.3,3414.7,2.92849]
[1721265131278,2.928,3415.3,3414.5,2.92861]
[1721265131492,2.928,3415.3,3414.6,2.92859]
[1721265131788,2.928,3415.3,3414.7,2.92851]
[1721265132001,2.928,3415.3,3414.5,2.92862]
[1721265132424,2.928,3415.3,3414.6,2.92858]
[1721265133621,2.92805,3415.3,3414.6,2.92858]
[1721265138518,2.92805,3415.3,3414.6,3.856582]
[1721265140469,2.92796,3415.4,3414.7,2.9285]
[1721265140763,2.92801,3415.3,3414.7,2.9285]
[1721265142261,3.97882,3415.5,3414.7,3.9492882]
[1721265143179,2.92791,3415.4,3414.7,3.9492882]
[1721265144259,2.92791,3415.4,3414.7,2.9285]
[1721265144457,2.92801,3415.3,3414.5,2.92868]
[1721265144656,3.97901,3415.3,3414.6,2.92859]
[1721265145768,2.92819,3415.1,3414.4,5.30046]
[1721265145981,3.97919,3415.1,3414.4,5.30046]
[1721265146446,5.25107,3415.0,3414.2,2.92894]
[1721265146875,1.051,3414.9,3414.2,2.92894]